fUSD/lending_fUSD_20240429
["ID","MTS","AMOUNT","RATE_DAILY","PERIOD"]
[324842265,1714369856633,-500.0,0.00012699,2]
[324842266,1714369856642,-500.0,0.00012699,2]
[324842267,1714369856652,-500.0,0.00012699,2]
[324842268,1714369856661,-343.861261,0.00012699,2]
[324842269,1714369856669,-500.0,0.00012699,2]
[324842270,1714369856678,-343.861261,0.00012699,2]
[324842271,1714369856687,-500.0,0.00012699,2]
[324842272,1714369856696,-343.861261,0.00012699,2]
[324842273,1714369856705,-343.861261,0.00012699,2]
[324842274,1714369856714,-500.0,0.00012699,2]
[324842275,1714369856723,-501.60724152,0.00012699,2]
[324842276,1714369856732,-500.0,0.00012699,2]
[324842277,1714369856741,-500.0,0.00012699,2]
[324842278,1714369856752,-500.0,0.00012699,2]
[324842279,1714369856761,-500.0,0.00012699,2]
[324842280,1714369856770,-500.0,0.00012699,2]
[324842281,1714369856779,-500.0,0.00012699,2]
[324842282,1714369856789,-500.0,0.00012699,2]
[324842283,1714369856798,-505.78222128,0.00012699,2]
[324842284,1714369856807,-766.5,0.00012699,2]
[324842285,1714369856816,-500.0,0.00012699,2]
[324842286,1714369856825,-500.0,0.00012699,2]
[324842287,1714369856834,-507.19316302,0.00012699,2]
[324842288,1714369856844,-500.0,0.00012699,2]
[324842289,1714369856853,-500.73087435,0.00012699,2]
[324842290,1714369856862,-500.0,0.00012699,2]
[324842291,1714369856871,-400.92,0.00012699,2]
[324842292,1714369856880,-500.0,0.00012699,2]
[324842293,1714369856890,-502.53696003,0.00012699,2]
[324842294,1714369856899,-500.0,0.00012699,2]
[324842295,1714369856908,-500.0,0.00012699,2]
[324842296,1714369856917,-500.0,0.00012699,2]
[324842297,1714369856926,-500.0,0.00012699,2]
[324842298,1714369856935,-500.0,0.00012699,2]
[324842299,1714369856944,-598.0,0.00012699,2]
[324842300,1714369856953,-500.0,0.00012699,2]
[324842301,1714369856962,-500.0,0.00012699,2]
[324842302,1714369856972,-500.0,0.00012699,2]
[324842303,1714369856981,-500.0,0.00012699,2]
[324842304,1714369856990,-1281.48,0.00012699,2]
[324842305,1714369857000,-508.67005692,0.00012699,2]
[324842306,1714369857009,-500.0,0.00012699,2]
[324842307,1714369857018,-500.0,0.00012699,2]
[324842308,1714369857028,-500.0,0.00012699,2]
[324842309,1714369857038,-211.137646,0.00012699,2]
[324842310,1714369857047,-211.137646,0.00012699,2]
[324842311,1714369857056,-500.0,0.00012699,2]
[324842312,1714369857066,-500.0,0.00012699,2]
[324842313,1714369857075,-233.251933,0.00012699,2]
[324842314,1714369857085,-211.137646,0.00012699,2]
[324842315,1714369857095,-628.53,0.00012699,2]
[324842316,1714369857104,-233.251933,0.00012699,2]
[324842317,1714369857114,-211.137646,0.00012699,2]
[324842318,1714369857124,-151.0,0.00012699,2]
[324842319,1714369857134,-151.0,0.00012699,2]
[324842320,1714369857145,-233.251933,0.00012699,2]
[324842321,1714369857155,-233.251933,0.00012699,2]
[324842322,1714369857164,-151.0,0.00012699,2]
[324842323,1714369857175,-151.0,0.00012699,2]
[324842324,1714369857184,-500.0,0.00012699,2]
[324842325,1714369857198,-509.40572822,0.00012699,2]
[324842326,1714369857208,-151.0,0.00012699,2]
[324842327,1714369857218,-151.0,0.00012699,2]
[324842328,1714369857228,-151.0,0.00012699,2]
[324842329,1714369857238,-151.0,0.00012699,2]
[324842330,1714369857247,-512.9900549,0.00012699,2]
[324842331,1714369857260,-151.0,0.00012699,2]
[324842332,1714369857271,-151.0,0.00012699,2]
[324842333,1714369857282,-500.0,0.00012699,2]
[324842334,1714369857292,-1902.6,0.00012699,2]
[324842335,1714369857301,-504.61871014,0.00012699,2]
[324842336,1714369857310,-500.0,0.00012699,2]
[324842337,1714369857320,-500.0,0.00012699,2]
[324842338,1714369857330,-506.15987005,0.00012699,2]
[324842339,1714369857339,-500.0,0.00012699,2]
[324842340,1714369857348,-500.0,0.00012699,2]
[324842341,1714369857358,-500.0,0.00012699,2]
[324842342,1714369857367,-500.0,0.00012699,2]
[324842343,1714369857377,-500.0,0.00012699,2]
[324842344,1714369857386,-500.0,0.00012699,2]
[324842345,1714369857396,-151.0,0.00012699,2]
[324842346,1714369857406,-151.0,0.00012699,2]
[324842347,1714369857416,-185.110416,0.00012699,2]
[324842348,1714369857425,-20781.23669261,0.000127,2]
[324842349,1714369857435,-5723.64750407,0.000127,2]
[324842350,1714369857444,-155.26612739,0.000127,2]
[324842351,1714369857454,-173.42408567,0.000127,2]
[324842352,1714369857463,-1474.67955714,0.000127,2]
[324842353,1714369857472,-399.42152301,0.000127,2]
[324842354,1714369857482,-361.99762368,0.000127,2]
[324842355,1714369857491,-366.6335587,0.000127,2]
[324842356,1714369857501,-288.56832451,0.000127,2]
[324842357,1714369857511,-7515.08425485,0.000127,2]
[324842358,1714369857520,-546.96745632,0.000127,2]
[324842359,1714369857530,-298.84757904,0.000127,2]
[324842360,1714369857539,-179.76311793,0.000127,2]
[324842361,1714369857547,-408.77030768,0.000127,2]
[324842362,1714369857556,-155.0,0.000127,2]
[324842363,1714369857565,-181.7438,0.000127,2]
[324842364,1714369857575,-151.320799,0.000127,2]
[324842365,1714369857584,-182.78448016,0.000127,2]
[324842366,1714369857592,-195.160842,0.000127,2]
[324842367,1714369857602,-195.160842,0.000127,2]
[324842368,1714369857611,-151.0,0.000127,2]
[324842369,1714369857620,-151.0,0.000127,2]
[324842370,1714369857629,-724.43075,0.000127,2]
[324842371,1714369857639,-211.137646,0.000127,2]
[324842372,1714369857648,-233.251933,0.000127,2]
[324842373,1714369857657,-211.137646,0.000127,2]
[324842374,1714369857667,-151.0,0.000127,2]
[324842375,1714369857676,-233.251933,0.000127,2]
[324842376,1714369857685,-151.0,0.000127,2]
[324842377,1714369857696,-151.0,0.000127,2]
[324842378,1714369857705,-151.0,0.000127,2]
[324842379,1714369857714,-288.557381,0.000127,2]
[324842380,1714369857725,-151.0,0.000127,2]
[324842381,1714369857734,-150.0,0.00012706,2]
[324842382,1714369857743,-150.0,0.00012707,2]
[324842383,1714369857755,-150.0,0.00012709,2]
[324842384,1714369857764,-150.0,0.00012711,2]
[324842385,1714369857774,-150.0,0.00012712,2]
[324842386,1714369857783,-150.0,0.00012713,2]
[324842387,1714369857791,-150.0,0.00012716,2]
[324842388,1714369857800,-150.0,0.00012717,2]
[324842389,1714369857809,-150.0,0.00012717,2]
[324842390,1714369857818,-150.0,0.00012719,2]
[324842391,1714369857827,-152.645666,0.00012719,2]
[324842392,1714369857836,-152.645666,0.00012719,2]
[324842393,1714369857845,-151.0,0.00012719,2]
[324842394,1714369857854,-151.0,0.00012719,2]
[324842395,1714369857862,-343.861261,0.00012719,2]
[324842396,1714369857871,-343.861261,0.00012719,2]
[324842397,1714369857879,-150.0,0.00012719,2]
[324842398,1714369857888,-150.0,0.0001272,2]
[324842399,1714369857898,-150.0,0.00012721,2]
[324842400,1714369857907,-1500.0,0.00012723,2]
[324842401,1714369857916,-150.0,0.00012723,2]
[324842402,1714369857924,-150.0,0.00012726,2]
[324842403,1714369857933,-150.0,0.00012726,2]
[324842404,1714369857942,-1500.0,0.00012727,2]
[324842405,1714369857951,-150.0,0.0001273,2]
[324842406,1714369857960,-150.0,0.00012734,2]
[324842407,1714369857969,-150.0,0.00012734,2]
[324842408,1714369857978,-500.0,0.00012736,2]
[324842409,1714369857988,-150.0,0.00012739,2]
[324842410,1714369857997,-150.0,0.00012746,2]
[324842411,1714369858008,-150.0,0.00012747,2]
[324842412,1714369858017,-150.0,0.00012747,2]
[324842413,1714369858027,-150.0,0.00012748,2]
[324842414,1714369858036,-150.0,0.00012756,2]
[324842415,1714369858045,-150.0,0.00012758,2]
[324842416,1714369858178,-150.0,0.00012764,2]
[324842417,1714369858192,-150.0,0.00012765,2]
[324842418,1714369858202,-150.0,0.00012766,2]
[324842419,1714369858212,-150.0,0.00012768,2]
[324842420,1714369858222,-150.0,0.00012771,2]
[324842421,1714369858233,-150.0,0.00012771,2]
[324842422,1714369858243,-1500.0,0.00012772,2]
[324842423,1714369858254,-150.0,0.00012773,2]
[324842424,1714369858266,-150.0,0.00012774,2]
[324842425,1714369858275,-150.0,0.00012775,2]
[324842426,1714369858285,-150.0,0.0001278,2]
[324842427,1714369858295,-150.0,0.00012783,2]
[324842428,1714369858305,-150.0,0.00012784,2]
[324842429,1714369858315,-151.0,0.00012784,2]
[324842430,1714369858324,-279.18272762,0.00012784,2]
[324842431,1714369858334,-150.0,0.00012787,2]
[324842432,1714369858342,-1500.0,0.00012787,2]
[324842433,1714369858352,-150.0,0.00012787,2]
[324842434,1714369858361,-150.0,0.00012788,2]
[324842435,1714369858371,-150.0,0.00012796,2]
[324842436,1714369858380,-993.0,0.000128,2]
[324842437,1714369858390,-151.0,0.000128,2]
[324842438,1714369858399,-4000.98,0.000128,2]
[324842439,1714369858409,-151.0,0.000128,2]
[324842440,1714369858418,-151.0,0.000128,2]
[324842441,1714369858428,-2999.02,0.000128,2]
[324842442,1714369858437,-150.0,0.000128,2]
[324842443,1714369858446,-151.0,0.000128,2]
[324842444,1714369858455,-151.0,0.000128,2]
[324842445,1714369858465,-150.0,0.000128,2]
[324842446,1714369858474,-724.43075,0.000128,2]
[324842448,1714369858484,-150.0,0.00012802,2]
[324842449,1714369858493,-150.0,0.00012809,2]
[324842450,1714369858504,-150.0,0.00012812,2]
[324842451,1714369858514,-150.0,0.00012815,2]
[324842452,1714369858523,-150.0,0.00012816,2]
[324842453,1714369858532,-150.0,0.00012819,2]
[324842454,1714369858542,-150.0,0.0001282,2]
[324842455,1714369858551,-150.0,0.00012822,2]
[324842456,1714369858560,-150.0,0.00012824,2]
[324842457,1714369858569,-150.0,0.00012825,2]
[324842458,1714369858578,-150.0,0.00012826,2]
[324842459,1714369858588,-150.0,0.00012832,2]
[324842460,1714369858597,-152.0,0.00012834,4]
[324842461,1714369858606,-150.0,0.00012837,2]
[324842462,1714369858615,-150.0,0.0001284,2]
[324842463,1714369858624,-150.0,0.00012847,2]
[324842464,1714369858634,-150.0,0.00012847,2]
[324842465,1714369858643,-150.0,0.00012848,2]
[324842466,1714369858653,-525.0,0.00012849,2]
[324842467,1714369858662,-150.62058751,0.00012849,2]
[324842468,1714369858671,-150.0,0.00012851,2]
[324842469,1714369858680,-150.0,0.00012851,2]
[324842470,1714369858689,-150.0,0.00012851,2]
[324842471,1714369858698,-150.0,0.00012857,2]
[324842472,1714369858707,-175.72397586,0.0001286,2]
[324842473,1714369858717,-754.39708512,0.00012863,2]
[324842474,1714369858727,-150.0,0.00012864,2]
[324842475,1714369858736,-150.0,0.00012866,2]
[324842476,1714369858745,-302.34340948,0.00012871,2]
[324842477,1714369858756,-500.0,0.00012873,2]
[324842478,1714369858765,-500.0,0.00012873,2]
[324842479,1714369858774,-500.0,0.00012873,2]
[324842480,1714369858783,-500.0,0.00012873,2]
[324842481,1714369858792,-500.0,0.00012873,2]
[324842482,1714369858801,-500.0,0.00012873,2]
[324842483,1714369858811,-500.0,0.00012873,2]
[324842484,1714369858820,-483.53368875,0.00012873,2]
[324842485,1714369858829,-500.0,0.00012873,2]
[324842486,1714369858839,-500.0,0.00012873,2]
[324842487,1714369858848,-500.0,0.00012873,2]
[324842488,1714369858857,-500.0,0.00012873,2]
[324842489,1714369858867,-500.0,0.00012873,2]
[324842490,1714369858876,-500.0,0.00012873,2]
[324842491,1714369858885,-500.0,0.00012873,2]
[324842492,1714369858895,-535.6,0.00012873,2]
[324842493,1714369858904,-500.0,0.00012873,2]
[324842494,1714369858913,-500.0,0.00012873,2]
[324842495,1714369858922,-500.0,0.00012873,2]
[324842496,1714369858931,-500.0,0.00012873,2]
[324842497,1714369858940,-500.0,0.00012873,2]
[324842498,1714369858950,-500.0,0.00012873,2]
[324842499,1714369858959,-500.0,0.00012873,2]
[324842500,1714369858968,-500.0,0.00012873,2]
[324842501,1714369858977,-195.160842,0.00012873,2]
[324842502,1714369858986,-195.160842,0.00012873,2]
[324842503,1714369858995,-500.0,0.00012873,2]
[324842504,1714369859007,-500.0,0.00012873,2]
[324842505,1714369859016,-500.0,0.00012873,2]
[324842506,1714369859026,-500.0,0.00012873,2]
[324842507,1714369859036,-500.0,0.00012873,2]
[324842508,1714369859045,-500.0,0.00012873,2]
[324842509,1714369859055,-500.0,0.00012873,2]
[324842510,1714369859063,-151.0,0.00012873,2]
[324842511,1714369859072,-500.0,0.00012873,2]
[324842512,1714369859082,-151.0,0.00012873,2]
[324842513,1714369859091,-500.0,0.00012873,2]
[324842514,1714369859101,-500.0,0.00012873,2]
[324842515,1714369859110,-500.0,0.00012873,2]
[324842516,1714369859119,-500.0,0.00012873,2]
[324842517,1714369859129,-501.37240427,0.00012873,2]
[324842518,1714369859139,-150.0,0.00012873,2]
[324842519,1714369859148,-500.0,0.00012873,2]
[324842520,1714369859157,-500.0,0.00012873,2]
[324842521,1714369859166,-500.0,0.00012873,2]
[324842522,1714369859175,-500.0,0.00012873,2]
[324842523,1714369859185,-500.0,0.00012873,2]
[324842524,1714369859195,-504.23311789,0.00012873,2]
[324842525,1714369859205,-500.0,0.00012873,2]
[324842526,1714369859214,-500.0,0.00012873,2]
[324842527,1714369859223,-500.0,0.00012873,2]
[324842528,1714369859233,-500.0,0.00012873,2]
[324842529,1714369859242,-500.0,0.00012873,2]
[324842530,1714369859252,-546.14828872,0.00012873,2]
[324842531,1714369859261,-500.0,0.00012873,2]
[324842532,1714369859273,-500.0,0.00012873,2]
[324842533,1714369859282,-500.0,0.00012873,2]
[324842534,1714369859291,-500.0,0.00012873,2]
[324842535,1714369859300,-500.0,0.00012873,2]
[324842536,1714369859309,-500.0,0.00012873,2]
[324842537,1714369859318,-500.0,0.00012873,2]
[324842538,1714369859327,-500.0,0.00012873,2]
[324842539,1714369859336,-500.0,0.00012873,2]
[324842540,1714369859346,-500.0,0.00012873,2]
[324842541,1714369859356,-500.0,0.00012873,2]
[324842542,1714369859366,-604.29,0.00012873,2]
[324842543,1714369859375,-500.0,0.00012873,2]
[324842544,1714369859384,-500.0,0.00012873,2]
[324842545,1714369859393,-503.69146172,0.00012873,2]
[324842546,1714369859402,-500.0,0.00012873,2]
[324842547,1714369859412,-500.0,0.00012873,2]
[324842548,1714369859421,-500.0,0.00012873,2]
[324842549,1714369859430,-500.0,0.00012873,2]
[324842550,1714369859439,-500.0,0.00012873,2]
[324842551,1714369859448,-500.0,0.00012873,2]
[324842552,1714369859458,-500.0,0.00012873,2]
[324842553,1714369859467,-504.28260699,0.00012873,2]
[324842554,1714369859476,-506.42,0.00012873,2]
[324842555,1714369859485,-500.0,0.00012873,2]
[324842556,1714369859494,-500.0,0.00012873,2]
[324842557,1714369859506,-500.0,0.00012873,2]
[324842558,1714369859514,-151.0,0.00012873,2]
[324842559,1714369859523,-500.0,0.00012873,2]
[324842560,1714369859532,-500.0,0.00012873,2]
[324842561,1714369859541,-500.0,0.00012873,2]
[324842562,1714369859550,-500.0,0.00012873,2]
[324842563,1714369859559,-500.0,0.00012873,2]
[324842564,1714369859568,-500.0,0.00012873,2]
[324842565,1714369859577,-152.645666,0.00012873,2]
[324842566,1714369859586,-152.645666,0.00012873,2]
[324842567,1714369859595,-500.0,0.00012873,2]
[324842568,1714369859604,-500.0,0.00012873,2]
[324842569,1714369859613,-508.79185624,0.00012873,2]
[324842570,1714369859622,-151.0,0.00012873,2]
[324842571,1714369859632,-500.0,0.00012873,2]
[324842572,1714369859641,-500.0,0.00012873,2]
[324842573,1714369859650,-500.0,0.00012873,2]
[324842574,1714369859659,-500.0,0.00012873,2]
[324842575,1714369859668,-500.0,0.00012873,2]
[324842576,1714369859677,-1007.82587712,0.00012873,2]
[324842577,1714369859686,-500.0,0.00012873,2]
[324842578,1714369859695,-215.507729,0.00012873,2]
[324842579,1714369859704,-500.0,0.00012873,2]
[324842580,1714369859713,-500.0,0.00012873,2]
[324842581,1714369859722,-500.0,0.00012873,2]
[324842582,1714369859731,-670.72,0.00012873,2]
[324842583,1714369859740,-500.0,0.00012873,2]
[324842584,1714369859749,-500.0,0.00012873,2]
[324842585,1714369859759,-343.861261,0.00012873,2]
[324842586,1714369859767,-500.0,0.00012873,2]
[324842587,1714369859776,-500.0,0.00012873,2]
[324842588,1714369859786,-500.0,0.00012873,2]
[324842589,1714369859794,-500.0,0.00012873,2]
[324842590,1714369859803,-343.861261,0.00012873,2]
[324842591,1714369859812,-628.8826961,0.00012873,2]
[324842592,1714369859821,-500.0,0.00012873,2]
[324842593,1714369859830,-500.0,0.00012873,2]
[324842594,1714369859839,-500.0,0.00012873,2]
[324842595,1714369859848,-500.0,0.00012873,2]
[324842596,1714369859858,-531.64611224,0.00012873,2]
[324842597,1714369859868,-500.0,0.00012873,2]
[324842598,1714369859877,-500.0,0.00012873,2]
[324842599,1714369859886,-500.0,0.00012873,2]
[324842600,1714369859896,-500.0,0.00012873,2]
[324842601,1714369859906,-500.0,0.00012873,2]
[324842602,1714369859915,-500.0,0.00012873,2]
[324842603,1714369859925,-500.0,0.00012873,2]
[324842604,1714369859934,-229.02460796,0.00012873,2]
[324842605,1714369859945,-500.0,0.00012873,2]
[324842606,1714369859954,-377.23693934,0.00012873,2]
[324842607,1714369859963,-500.0,0.00012873,2]
[324842608,1714369859972,-500.0,0.00012873,2]
[324842609,1714369859981,-500.0,0.00012873,2]
[324842610,1714369859991,-500.0,0.00012873,2]
[324842611,1714369860000,-500.0,0.00012873,2]
[324842612,1714369860009,-500.0,0.00012873,2]
[324842613,1714369860019,-500.0,0.00012873,2]
[324842614,1714369860029,-500.0,0.00012873,2]
[324842615,1714369860038,-500.0,0.00012873,2]
[324842616,1714369860049,-500.0,0.00012873,2]
[324842617,1714369860058,-211.137646,0.00012873,2]
[324842618,1714369860067,-2805.37,0.00012873,2]
[324842619,1714369860077,-233.251933,0.00012873,2]
[324842620,1714369860086,-500.0,0.00012873,2]
[324842621,1714369860095,-211.137646,0.00012873,2]
[324842622,1714369860105,-151.0,0.00012873,2]
[324842623,1714369860114,-500.0,0.00012873,2]
[324842624,1714369860123,-233.251933,0.00012873,2]
[324842625,1714369860132,-194.340596,0.00012873,2]
[324842626,1714369860142,-419.38547034,0.00012873,2]
[324842627,1714369860151,-500.0,0.00012873,2]
[324842628,1714369860161,-151.0,0.00012873,2]
[324842629,1714369860170,-250.433996,0.00012873,2]
[324842630,1714369860179,-500.0,0.00012873,2]
[324842631,1714369860192,-500.0,0.00012873,2]
[324842632,1714369860201,-500.0,0.00012873,2]
[324842633,1714369860210,-500.0,0.00012873,2]
[324842634,1714369860220,-500.0,0.00012873,2]
[324842635,1714369860231,-500.0,0.00012873,2]
[324842636,1714369860241,-680.5,0.00012873,2]
[324842637,1714369860251,-500.0,0.00012873,2]
[324842638,1714369860260,-500.0,0.00012873,2]
[324842639,1714369860272,-207.68867775,0.00012873,2]
[324842640,1714369860283,-500.0,0.00012873,2]
[324842641,1714369860293,-601.85,0.00012873,2]
[324842642,1714369860302,-500.0,0.00012873,2]
[324842643,1714369860311,-500.0,0.00012873,2]
[324842644,1714369860321,-500.0,0.00012873,2]
[324842645,1714369860440,-500.0,0.00012873,2]
[324842646,1714369860450,-500.0,0.00012873,2]
[324842647,1714369860459,-500.0,0.00012873,2]
[324842648,1714369860468,-500.0,0.00012873,2]
[324842649,1714369860477,-500.0,0.00012873,2]
[324842650,1714369860487,-500.0,0.00012873,2]
[324842651,1714369860495,-500.0,0.00012873,2]
[324842652,1714369860507,-1718.9,0.00012873,2]
[324842653,1714369860515,-500.0,0.00012873,2]
[324842654,1714369860525,-500.0,0.00012873,2]
[324842655,1714369860534,-500.0,0.00012873,2]
[324842656,1714369860543,-500.0,0.00012873,2]
[324842657,1714369860553,-507.68428613,0.00012873,2]
[324842658,1714369860562,-500.0,0.00012873,2]
[324842659,1714369860571,-500.0,0.00012873,2]
[324842660,1714369860579,-500.0,0.00012873,2]
[324842661,1714369860589,-500.0,0.00012873,2]
[324842662,1714369860598,-711.96,0.00012873,2]
[324842663,1714369860607,-500.0,0.00012873,2]
[324842664,1714369860616,-500.0,0.00012873,2]
[324842665,1714369860625,-500.0,0.00012873,2]
[324842666,1714369860634,-500.0,0.00012873,2]
[324842667,1714369860643,-500.0,0.00012873,2]
[324842668,1714369860652,-513.23,0.00012873,2]
[324842669,1714369860662,-500.0,0.00012873,2]
[324842670,1714369860671,-500.0,0.00012873,2]
[324842671,1714369860681,-500.0,0.00012876,2]
[324842672,1714369860690,-500.0,0.00012876,2]
[324842673,1714369860699,-500.0,0.00012876,2]
[324842674,1714369860708,-500.0,0.00012876,2]
[324842675,1714369860718,-500.0,0.00012876,2]
[324842676,1714369860727,-629.87,0.00012876,2]
[324842677,1714369860736,-2212.09,0.00012876,2]
[324842678,1714369860746,-490.76,0.00012876,2]
[324842679,1714369860756,-382.58,0.00012876,2]
[324842680,1714369860766,-500.0,0.00012876,2]
[324842681,1714369860775,-500.0,0.00012876,2]
[324842682,1714369860783,-500.0,0.00012876,2]
[324842683,1714369860793,-1206.18,0.00012876,2]
[324842684,1714369860802,-1241.44,0.00012876,2]
[324842685,1714369860811,-500.0,0.00012876,2]
[324842686,1714369860821,-500.0,0.00012876,2]
[324842687,1714369860830,-1143.41,0.00012876,2]
[324842688,1714369860839,-500.0,0.00012876,2]
[324842689,1714369860849,-500.0,0.00012876,2]
[324842690,1714369860858,-211.137646,0.00012876,2]
[324842691,1714369860868,-1668.88,0.00012876,2]
[324842692,1714369860877,-233.251933,0.00012876,2]
[324842693,1714369860887,-211.137652,0.00012876,2]
[324842694,1714369860896,-654.9,0.00012876,2]
[324842695,1714369860905,-151.0,0.00012876,2]
[324842696,1714369860914,-233.251927,0.00012876,2]
[324842697,1714369860924,-500.0,0.00012876,2]
[324842698,1714369860933,-1123.26,0.00012876,2]
[324842699,1714369860943,-151.0,0.00012876,2]
[324842700,1714369860952,-500.0,0.00012876,2]
[324842701,1714369860961,-691.21,0.00012876,2]
[324842702,1714369860970,-1148.03,0.00012876,2]
[324842703,1714369860980,-703.26,0.00012876,2]
[324842704,1714369860989,-500.0,0.00012876,2]
[324842705,1714369860998,-865.39,0.00012876,2]
[324842706,1714369861009,-500.0,0.00012876,2]
[324842707,1714369861019,-1051.22,0.00012876,2]
[324842708,1714369861029,-766.76,0.00012876,2]
[324842709,1714369861038,-813.64,0.00012876,2]
[324842710,1714369861047,-1514.85,0.00012876,2]
[324842711,1714369861057,-820.07,0.00012876,2]
[324842712,1714369861066,-500.0,0.00012876,2]
[324842713,1714369861075,-500.0,0.00012876,2]
[324842714,1714369861084,-579.14,0.00012876,2]
[324842715,1714369861094,-3775.3,0.00012876,2]
[324842716,1714369861103,-1259.62,0.00012876,2]
[324842717,1714369861112,-500.0,0.00012876,2]
[324842718,1714369861121,-500.0,0.00012876,2]
[324842719,1714369861131,-500.0,0.00012876,2]
[324842720,1714369861141,-4974.82,0.00012876,2]
[324842721,1714369861150,-500.0,0.00012876,2]
[324842722,1714369861159,-1321.25,0.00012876,2]
[324842723,1714369861168,-150.0,0.00012877,2]
[324842724,1714369861178,-301.3390537,0.00012878,2]
[324842725,1714369861188,-1000.0,0.00012886,2]
[324842726,1714369861200,-500.0,0.00012886,2]
[324842727,1714369861210,-150.0,0.00012887,2]
[324842728,1714369861220,-150.0,0.00012888,2]
[324842729,1714369861229,-173.93618721,0.00012889,2]
[324842730,1714369861239,-180.35486569,0.00012889,2]
[324842731,1714369861248,-218.27293448,0.00012889,2]
[324842732,1714369861262,-2678.44354586,0.0001289,2]
[324842733,1714369861273,-2678.44354584,0.00012895,2]
[324842734,1714369861283,-150.0,0.00012896,2]
[324842735,1714369861292,-1000.0,0.000129,2]
[324842736,1714369861301,-8844.9134,0.000129,2]
[324842737,1714369861310,-151.0,0.000129,2]
[324842738,1714369861319,-151.0,0.000129,2]
[324842739,1714369861329,-2678.44354584,0.000129,2]
[324842740,1714369861338,-1000.0,0.000129,2]
[324842741,1714369861347,-266.72769695,0.00012901,2]
[324842742,1714369861357,-150.0,0.00012902,2]
[324842743,1714369861366,-1500.0,0.0001291,2]
[324842744,1714369861376,-150.0,0.00012915,2]
[324842745,1714369861385,-150.0,0.00012916,2]
[324842746,1714369861394,-150.0,0.00012919,2]
[324842747,1714369861403,-150.0,0.0001292,2]
[324842748,1714369861412,-150.0,0.0001292,2]
[324842749,1714369861422,-150.0,0.00012923,2]
[324842750,1714369861431,-150.0,0.00012923,2]
[324842751,1714369861440,-150.0,0.00012926,2]
[324842752,1714369861450,-150.0,0.0001293,2]
[324842753,1714369861459,-150.0,0.00012934,2]
[324842754,1714369861469,-150.0,0.00012936,2]
[324842755,1714369861480,-150.0,0.00012937,2]
[324842756,1714369861490,-150.0,0.00012937,2]
[324842757,1714369861500,-150.0,0.0001294,2]
[324842758,1714369861513,-871.098,0.00012941,2]
[324842759,1714369861523,-150.0,0.00012942,2]
[324842760,1714369861532,-150.0,0.00012942,2]
[324842761,1714369861541,-150.0,0.00012942,2]
[324842762,1714369861550,-1500.0,0.00012946,2]
[324842763,1714369861559,-150.0,0.00012949,2]
[324842764,1714369861569,-150.0,0.00012949,2]
[324842765,1714369861578,-150.0,0.00012949,2]